fUST/lending_fUST_20240817
["ID","MTS","AMOUNT","RATE_DAILY","PERIOD"]
[335113434,1723852051289,-858.03836138,0.00038372,2]
[335113435,1723852051312,-250.0,0.00038472,2]
[335113436,1723852051335,-250.0,0.00038577,2]
[335113437,1723852051359,-250.0,0.00038681,2]
[335113438,1723852051384,-250.0,0.00038786,2]
[335113439,1723852051410,-250.0,0.0003889,2]
[335113440,1723852051435,-250.0,0.00038994,2]
[335113441,1723852051461,-250.0,0.00039099,2]
[335113442,1723852051484,-250.0,0.00039203,2]
[335113443,1723852051507,-250.0,0.00039307,2]
[335113444,1723852051530,-250.0,0.00039412,2]
[335113445,1723852051552,-250.0,0.00039516,2]
[335113446,1723852051574,-544.02690175,0.00039619,15]
[335113447,1723852051594,-203.65312641,0.00039619,15]
[335113448,1723852051618,-405.4467408,0.00039619,15]
[335113449,1723852051640,-243.26631301,0.00039619,15]
[335113450,1723852051662,-182.10682872,0.00039619,7]
[335113451,1723852051683,-250.0,0.0003962,2]
[335113452,1723852051705,-250.0,0.00039725,2]
[335113453,1723852051727,-250.0,0.00039829,2]
[335113454,1723852051749,-250.0,0.00039933,2]
[335113455,1723852051771,-250.0,0.00040038,2]
[335113456,1723852051793,-858.03836135,0.00042162,28]
[335113457,1723852051820,-356.75448895,0.00042424,2]
[335113458,1723852053501,273.37336231,0.00034,2]
[335113459,1723852054104,-896.98462408,0.00042424,2]
[335113460,1723852061709,516.25724992,0.00034,2]
[335113461,1723852076034,216.14361046,0.00014519,2]
[335113462,1723852076061,1899.139338,0.00014519,2]
[335113463,1723852089025,218.56878017,0.00017598,2]
[335113464,1723852091921,4720.45734761,0.00017598,2]
[335113465,1723852108141,600.0,0.00034,2]
[335113466,1723852148116,-555.91451014,0.00041211,2]
[335113467,1723852150142,-1831.89972967,0.00041211,2]
[335113468,1723852150177,-973.20252733,0.00041211,4]
[335113469,1723852150211,-245.742305,0.00041268,2]
[335113470,1723852150240,-245.742305,0.00041381,2]
[335113471,1723852150272,-245.742305,0.00041495,2]
[335113472,1723852150303,-245.742305,0.00041608,2]
[335113473,1723852150334,-245.742305,0.00041721,2]
[335113474,1723852150366,-245.742305,0.00041834,2]
[335113475,1723852150398,-245.742305,0.00041947,2]
[335113476,1723852150429,-245.742305,0.00042061,2]
[335113477,1723852150464,-245.742305,0.00042174,2]
[335113478,1723852150497,-245.742305,0.00042287,2]
[335113479,1723852150531,-245.742305,0.000424,2]
[335113480,1723852150564,-245.742305,0.00042513,2]
[335113481,1723852150595,-245.742305,0.00042626,2]
[335113482,1723852150627,-245.742305,0.0004274,2]
[335113483,1723852150658,-245.742305,0.00042853,2]
[335113484,1723852150689,-245.742305,0.00042966,2]
[335113485,1723852150718,-245.742305,0.00043079,2]
[335113486,1723852150749,-11475.6941,0.00043179,30]
[335113487,1723852150778,-245.742305,0.00043192,2]
[335113488,1723852150800,-245.742305,0.00043306,2]
[335113489,1723852150822,-245.742305,0.00043419,2]
[335113490,1723852151005,-858.03836135,0.00045951,28]
[335113491,1723852151026,-2000.0,0.0004663,120]
[335113492,1723852151047,-500.0,0.00048241,30]
[335113493,1723852151067,-2000.0,0.00048876,120]
[335113494,1723852151087,-2000.0,0.00049539,120]
[335113495,1723852151109,-858.03836135,0.00049741,28]
[335113496,1723852151134,-3000.0,0.00051,85]
[335113497,1723852151157,-500.0,0.00051009,120]
[335113498,1723852151178,-500.0,0.00051009,120]
[335113499,1723852151200,-500.0,0.00051009,120]
[335113500,1723852151221,-500.0,0.00051009,120]
[335113501,1723852151244,-500.0,0.00051009,120]
[335113502,1723852151267,-576.21415482,0.00051009,120]
[335113503,1723852151290,-500.0,0.00051009,120]
[335113504,1723852151311,-500.0,0.00051009,120]
[335113505,1723852151332,-500.0,0.00051009,120]
[335113506,1723852151353,-500.0,0.00051009,120]
[335113507,1723852151377,-500.0,0.00051009,120]
[335113508,1723852151399,-3000.0,0.0005101,85]
[335113509,1723852151421,-5648.927486,0.0005102,85]
[335113510,1723852151443,-1000.0,0.00052054,120]
[335113511,1723852151466,-2000.0,0.00052065,120]
[335113512,1723852151490,-1000.0,0.00052602,120]
[335113513,1723852151513,-1000.0,0.0005315,120]
[335113514,1723852151539,-858.03836135,0.00053531,28]
[335113515,1723852151566,-1000.0,0.00053698,120]
[335113516,1723852151588,-1000.0,0.00054246,120]
[335113517,1723852151613,-2000.0,0.00054281,120]
[335113518,1723852151637,-1983.20452747,0.00054694,2]
[335113519,1723852151660,-1000.0,0.00054794,120]
[335113520,1723852151683,-761.67213935,0.00055342,120]
[335113521,1723852151708,-1983.20452745,0.00055379,2]
[335113522,1723852151731,-1983.20452745,0.00056064,2]
[335113523,1723852151751,-2000.0,0.0005644,120]
[335113524,1723852151773,-1983.20452745,0.00056748,2]
[335113525,1723852151794,-858.03836135,0.00057321,28]
[335113526,1723852151814,-1983.20452745,0.00057433,2]
[335113527,1723852151834,-931.58018362,0.00057433,2]
[335113528,1723852151855,-150.112233,0.000575,10]
[335113529,1723852151876,-150.112233,0.000575,15]
[335113530,1723852151897,-150.112233,0.000575,15]
[335113531,1723852151918,-150.112233,0.000575,16]
[335113532,1723852151940,-150.112233,0.000575,11]
[335113533,1723852151963,-151043.79806137,0.00057513,120]
[335113534,1723852152077,-5939.24971359,0.00057513,120]
[335113535,1723852153118,-5836.42643319,0.00057513,120]
[335113536,1723852161098,-1541.26261498,0.00057513,120]
[335113537,1723852162285,245.26284124,0.00034,4]
[335113546,1723852168097,-21740.06786886,0.00057513,120]
[335113547,1723852171113,-5626.11271566,0.00057513,120]
[335113548,1723852171145,-4581.10553875,0.00057513,120]
[335113549,1723852171237,-149512.246768,0.00057513,120]
[335113581,1723852235630,820.12008693,0.00034,2]
[335113582,1723852238042,-664.89443291,0.00057511,61]
[335113583,1723852238056,-39742.72725705,0.00057511,61]
[335113584,1723852238155,-37419.42648219,0.00057511,120]
[335113585,1723852238175,-1382.24,0.00057511,120]
[335113586,1723852239134,-583619.44755047,0.00057511,120]
[335113587,1723852239148,-43039.58523944,0.00057511,120]
[335113596,1723852240427,-139200.80953607,0.00057511,120]
[335113601,1723852244065,-9526.92842874,0.0005751,120]
[335113602,1723852244182,-11185.99207563,0.0005751,120]
[335113603,1723852244332,766.86681155,0.00034,2]
[335113608,1723852246545,-45.82501067,0.0005751,120]
[335113609,1723852422569,154.79103211,0.00014519,2]
[335113610,1723852430284,728.43490027,0.00014519,2]
[335113612,1723852450348,195.23132214,0.00014519,2]
[335113613,1723852463598,154.90920525,0.00017598,2]
[335113614,1723852466229,154.60575532,0.00014519,2]
[335113615,1723852469090,229.63128667,0.00014519,2]
[335113616,1723852473959,4065.40618178,0.00014519,2]
[335113617,1723852475045,3791.00776383,0.00014519,2]
[335113618,1723852475496,886.65210123,0.00014519,2]
[335113619,1723852480019,218.66051313,0.00014519,2]
[335113620,1723852480141,1507.6909685,0.00014519,2]
[335113621,1723852480619,235.43224563,0.00014519,2]
[335113622,1723852480651,170.39662877,0.00014519,2]
[335113623,1723852481719,1670.92226544,0.00014519,2]
[335113625,1723852484374,1565.81262443,0.00014519,2]
[335113626,1723852484399,2052.96822665,0.00014519,2]
[335113627,1723852486587,161.77727299,0.00014519,2]
[335113628,1723852488054,2108.58934648,0.00014519,2]
[335113629,1723852488935,245.30609513,0.00014519,2]
[335113631,1723852505737,155.00722846,0.00017598,2]
[335113632,1723852508624,404.75983068,0.00014519,2]
[335113633,1723852515531,2776.39862401,0.00017598,2]
[335113634,1723852518928,167.25235123,0.00014519,2]
[335113635,1723852519378,565.85935351,0.00017598,2]
[335113636,1723852522513,218.12011485,0.00017598,2]
[335113637,1723852524091,886.36911481,0.00017598,2]
[335113638,1723852538332,245.21958735,0.00017598,2]
[335113639,1723852542736,6441.85845783,0.00014519,2]
[335113640,1723852608317,245.30609513,0.00017598,2]
[335113641,1723852638915,200.0,0.00021331,2]
[335113642,1723852653545,627.27847539,0.00021331,2]
[335113643,1723852661051,223.40672649,0.00021331,2]
[335113644,1723852661230,6874.52309901,0.00021331,2]
[335113645,1723852661255,2922.89191986,0.00021331,2]
[335113646,1723852675137,155.128283,0.00021331,2]
[335113647,1723852682373,157.02043595,0.00021331,2]
[335113648,1723852709033,230.0,0.00021331,2]
[335113649,1723852714153,551.82898769,0.00021331,2]
[335113650,1723852748327,245.30609513,0.00025855,2]
[335113651,1723852839629,342.47979758,0.00031339,4]
[335113652,1723852841188,154.80649189,0.00031339,4]
[335113653,1723852842231,924.99227805,0.00031339,4]
[335113654,1723852846444,2269.42093166,0.00031339,2]
[335113655,1723852852822,898.15627799,0.00031339,4]
[335113656,1723852853489,154.80649189,0.00031339,4]
[335113657,1723852854315,154.60575532,0.00031339,4]
[335113658,1723852862504,665.1114012,0.00031339,4]
[335113659,1723852862882,154.80649189,0.00031339,4]
[335113660,1723852863950,154.80649189,0.00031339,4]
[335113661,1723852865717,4774.46828701,0.00031339,4]
[335113663,1723852918161,21980.05748314,0.00013971,2]
[335113664,1723852918190,13696.19410217,0.00013971,2]
[335113665,1723852980741,451.68369657,0.00014519,2]
[335113666,1723852993350,245.30609513,0.00016934,2]
[335113668,1723853042755,155.00722846,0.00014519,2]
[335113670,1723853118888,3659.82489914,0.00017598,2]
[335113671,1723853136383,273.37336231,0.000275,2]
[335113672,1723853225119,-307.0,0.00031831,2]
[335113673,1723853225141,-162.76873837,0.00031831,2]
[335113674,1723853237105,-137.23126163,0.00031831,2]
[335113675,1723853237126,-10161.7338566,0.00031832,2]
[335113676,1723853237146,-200.924336,0.00031953,2]
[335113677,1723853237167,-483.03560992,0.000337,2]
[335113678,1723853237187,-6445.5428144,0.00033732,2]
[335113679,1723853237209,-536.40932186,0.00035208,7]
[335113680,1723853237230,-15584.73496735,0.00035209,2]
[335113681,1723853243089,-3477.26481602,0.00035209,2]
[335113682,1723853244087,-1910.16799773,0.00035209,2]
[335113683,1723853248146,-3927.8322189,0.00035209,2]
[335113684,1723853248168,-250.0,0.0003536,2]
[335113685,1723853248191,-250.0,0.00035457,2]
[335113686,1723853248215,-250.0,0.00035554,2]
[335113687,1723853248237,-250.0,0.00035651,2]
[335113688,1723853248259,-250.0,0.00035748,2]
[335113689,1723853248280,-250.0,0.00035845,2]
[335113690,1723853248303,-250.0,0.00035942,2]
[335113691,1723853248324,-34.2630145,0.00036039,2]
[335113692,1723853346145,-202.85588213,0.00036039,4]
[335113693,1723853346166,-250.0,0.00037353,2]
[335113694,1723853346188,-250.0,0.00037455,2]
[335113695,1723853346210,-250.0,0.00037558,2]
[335113696,1723853346233,-250.0,0.0003766,2]
[335113697,1723853346255,-250.0,0.00037763,2]
[335113698,1723853346278,-250.0,0.00037865,2]
[335113699,1723853346299,-250.0,0.00037968,2]
[335113700,1723853346321,-250.0,0.0003807,2]
[335113701,1723853346342,-250.0,0.00038172,2]
[335113702,1723853346364,-250.0,0.00038275,2]
[335113703,1723853346385,-250.0,0.00038377,2]
[335113704,1723853346408,-250.0,0.0003848,2]
[335113705,1723853346430,-250.0,0.00038582,2]
[335113706,1723853346452,-250.0,0.00038685,2]
[335113707,1723853346473,-250.0,0.00038787,2]
[335113708,1723853346495,-250.0,0.00038889,2]
[335113709,1723853346516,-250.0,0.00038992,2]
[335113710,1723853346537,-250.0,0.00039094,2]
[335113711,1723853346566,-250.0,0.00039197,2]
[335113712,1723853346587,-250.0,0.00039299,2]
[335113713,1723853346607,-1333.66462,0.000456,51]
[335113714,1723853346627,-1000.0,0.000461,51]
[335113715,1723853346762,-1000.0,0.000466,51]
[335113716,1723853346783,-3399.07763283,0.00046846,14]
[335113717,1723853348140,-271.19065009,0.00046846,14]
[335113718,1723853348167,-500.0,0.00049315,120]
[335113719,1723853348189,-500.0,0.00049315,120]
[335113720,1723853348211,-500.0,0.00049315,120]
[335113721,1723853348234,-500.0,0.00049315,120]
[335113722,1723853348256,-500.0,0.00049315,120]
[335113723,1723853348279,-500.0,0.00049315,120]
[335113724,1723853348305,-500.0,0.00049315,120]
[335113725,1723853348326,-500.0,0.00049315,120]
[335113726,1723853348348,-500.0,0.00049315,120]
[335113727,1723853348371,-500.0,0.00049315,120]
[335113728,1723853348392,-500.0,0.00049315,120]
[335113729,1723853348412,-500.0,0.00049315,120]
[335113730,1723853348434,-500.0,0.00049315,120]
[335113731,1723853348454,-500.0,0.00049315,120]
[335113732,1723853348476,-500.0,0.00049315,120]
[335113733,1723853348497,-500.0,0.00049315,120]
[335113734,1723853348519,-500.0,0.00049315,120]
[335113735,1723853348541,-245.22320106,0.00049315,120]
[335113736,1723853348564,-500.0,0.00049315,120]
[335113737,1723853348584,-500.0,0.00049315,120]
[335113738,1723853348607,-500.0,0.00049315,120]
[335113739,1723853348629,-500.0,0.00049315,120]
[335113740,1723853348651,-500.0,0.00049315,120]
[335113741,1723853348674,-500.0,0.00049315,120]
[335113742,1723853348696,-500.0,0.00049315,120]
[335113743,1723853348720,-500.0,0.00049315,120]
[335113744,1723853348741,-500.0,0.00049315,120]
[335113745,1723853348762,-500.0,0.00049315,120]
[335113746,1723853348783,-500.0,0.00049315,120]
[335113747,1723853348805,-500.0,0.00049315,120]
[335113748,1723853348827,-500.0,0.00049315,120]
[335113749,1723853348848,-500.0,0.00049315,120]
[335113750,1723853348870,-500.0,0.00049315,120]
[335113751,1723853348892,-360.81553764,0.00049315,120]
[335113752,1723853352097,-139.18446236,0.00049315,120]
[335113753,1723853352120,-500.0,0.00049315,120]
[335113754,1723853352141,-200.0,0.00049315,120]
[335113755,1723853352165,-2000.0,0.00049873,120]
[335113756,1723853373156,-150.0,0.00051,85]
[335113757,1723853373180,-1000.0,0.00052054,120]
[335113758,1723853373202,-2000.0,0.00052346,120]
[335113759,1723853373226,-2000.0,0.00054794,120]
[335113760,1723853373249,-386.4864712,0.00055,120]
[335113761,1723853384854,414.342124,0.00043683,7]
[335113762,1723853390631,154.93953486,0.00043683,4]
[335113763,1723853408730,153.27,0.000323,31]
[335113764,1723853408761,153.27,0.000323,31]
[335113765,1723853408804,153.27,0.000323,31]
[335113766,1723853408839,153.27,0.000323,31]
[335113767,1723853408978,153.27,0.000323,31]
[335113768,1723853409013,153.27,0.000323,31]
[335113769,1723853409049,153.27,0.000323,31]
[335113770,1723853409079,153.27,0.000323,31]
[335113771,1723853409111,153.27,0.000323,31]
[335113772,1723853409144,153.27,0.000323,31]
[335113773,1723853409180,153.27,0.000323,31]
[335113774,1723853409219,153.27,0.000323,31]
[335113775,1723853409488,153.27,0.000323,31]
[335113777,1723853431006,3363.55154989,0.0003977,2]
[335113778,1723853431051,167.31797915,0.0003977,2]
[335113779,1723853431093,240.65605795,0.0003977,2]
[335113780,1723853431136,6019.62006121,0.0003977,2]
[335113781,1723853431173,6031.3669233,0.0003977,2]
[335113797,1723853432797,-9077.4874285,0.0003977,2]
[335113799,1723853432808,-113.5135288,0.00055,120]
[335113801,1723853432819,-665.0319069,0.00056399,28]
[335113803,1723853432830,-1923.5671358,0.00056399,120]
[335113857,1723853438232,-394.56350429,0.00052948,7]
[335113859,1723853438242,-216.91539446,0.00056398,120]
[335113861,1723853438252,-1353.62935055,0.00056398,120]
[335113863,1723853438262,-500.0,0.00056398,120]
[335113865,1723853438272,-378.11288739,0.00056398,31]
[335113867,1723853438281,-1353.62935055,0.00056398,120]
[335113869,1723853438290,-1353.62935055,0.00056398,120]
[335113871,1723853438300,-1353.62935055,0.00056398,120]
[335113873,1723853438309,-1353.62935055,0.00056398,120]
[335113875,1723853438319,-1353.62935055,0.00056398,120]
[335113877,1723853438328,-500.0,0.00056398,120]
[335113879,1723853438337,-1353.62935055,0.00056398,120]
[335113881,1723853438346,-500.0,0.00056398,120]
[335113883,1723853438355,-1353.62935055,0.00056398,120]
[335113885,1723853438364,-1353.62935055,0.00056398,120]
[335113887,1723853438373,-1353.62935055,0.00056398,120]
[335113889,1723853438382,-1353.62935055,0.00056398,120]
[335113891,1723853438392,-500.0,0.00056398,120]
[335113893,1723853438402,-500.0,0.00056398,120]
[335113895,1723853438411,-1353.62935055,0.00056398,120]
[335113897,1723853438420,-646.57315119,0.00056398,120]
[335113899,1723853438430,-500.0,0.00056398,120]
[335113901,1723853438439,-500.0,0.00056398,120]
[335113903,1723853438449,-500.0,0.00056398,120]
[335113905,1723853438458,-544.5223201,0.00056398,120]
[335113907,1723853438469,-1353.62935055,0.00056398,120]
[335113910,1723853438479,-1353.62935055,0.00056398,120]
[335113912,1723853438489,-1353.62935055,0.00056398,120]
[335113914,1723853438499,-1353.62935055,0.00056398,120]
[335113916,1723853438510,-1353.62935055,0.00056398,120]
[335113918,1723853438520,-33482.0223089,0.00056399,120]
[335113940,1723853440578,-212.24088864,0.00056399,120]
[335113941,1723853440603,-139376.74063761,0.00056399,120]
[335113942,1723853440656,-17666.36455976,0.00056399,120]
[335113943,1723853440667,-2561.09753011,0.00056399,120]
[335113946,1723853443456,-509.02023162,0.00056399,120]
[335113948,1723853444098,-202.15700245,0.00056399,120]
[335113949,1723853444142,-353.15641852,0.00056399,120]
[335113960,1723853494711,191.9952835,0.00014519,2]
[335113961,1723853500641,160.36529473,0.00014519,2]
[335113962,1723853504462,404.2385044,0.00014519,2]
[335113963,1723853504494,463.64893982,0.00014519,2]
[335113964,1723853505340,154.80649189,0.00014519,2]
[335113965,1723853505413,210.13067206,0.00014519,2]
[335113966,1723853505469,2165.20291982,0.00014519,2]
[335113967,1723853508008,210.23309838,0.00014519,2]
[335113968,1723853508776,644.86173875,0.00014519,2]
[335113969,1723853508917,810.98237385,0.00014519,2]
[335113970,1723853510368,1102.14529902,0.00014519,2]
[335113971,1723853510397,1039.68652621,0.00014519,2]
[335113972,1723853511385,154.80649189,0.00014519,2]
[335113973,1723853511788,569.27511148,0.00014519,2]
[335113974,1723853511822,190.08492285,0.00014519,2]
[335113975,1723853513119,154.86909325,0.00014519,2]
[335113976,1723853514581,154.80649189,0.00014519,2]
[335113977,1723853514630,22311.38909585,0.00013971,2]
[335113978,1723853514759,14290.11564043,0.00013971,2]
[335113979,1723853515550,320.11477808,0.00014519,2]
[335113980,1723853515800,10389.76958149,0.00013971,2]
[335113981,1723853515830,10394.90533366,0.00013971,2]
[335113982,1723853516117,8840.23662851,0.00014245,2]
[335113983,1723853516167,534.58678596,0.00014519,2]
[335113984,1723853516245,159.90294386,0.00014519,2]
[335113985,1723853517176,1612.67783737,0.00014519,2]
[335113986,1723853522051,207.12610543,0.00014519,2]
[335113987,1723853522212,933.35147554,0.00014519,2]
[335113988,1723853522792,309.73441032,0.00014519,2]
[335113989,1723853523194,156.21134674,0.00014519,2]
[335113990,1723853523353,1500.0,0.00014519,2]
[335113991,1723853524554,196.71565749,0.00014519,2]
[335113992,1723853525059,154.55147512,0.00014519,2]
[335113993,1723853525089,258.97769471,0.00014519,2]
[335113994,1723853526085,156.93178488,0.00014519,2]
[335113995,1723853526329,1765.67532584,0.00014519,2]
[335113996,1723853526567,520.31494712,0.00014519,2]
[335113997,1723853527011,206.72914803,0.00014519,2]
[335113998,1723853527585,223.40672649,0.00014519,2]
[335113999,1723853528271,162.81928945,0.00014519,2]
[335114000,1723853529198,612.26517376,0.00014519,2]
[335114001,1723853529639,196.5936634,0.00014519,2]
[335114002,1723853529902,2711.31124135,0.00014519,2]
[335114003,1723853530270,154.80649189,0.00014519,2]
[335114004,1723853530870,157.02043595,0.00014519,2]
[335114005,1723853531050,500.0,0.00014519,2]
[335114006,1723853531082,207.9839122,0.00014519,2]
[335114007,1723853531692,281.07945898,0.00014519,2]
[335114008,1723853531795,16703.7205318,0.00013971,2]
[335114009,1723853531822,22741.51255008,0.00013971,2]
[335114010,1723853572842,-250.93125227,0.0001397,2]
[335114011,1723853572868,-500.0,0.0001397,2]
[335114012,1723853572894,-500.0,0.0001397,2]
[335114013,1723853572921,-500.0,0.0001397,2]
[335114014,1723853572944,-622.58989871,0.0001397,2]
[335114015,1723853572969,-58824.8801277,0.00013971,2]
[335114018,1723853818226,-7010.23526088,0.00013597,2]
[335114019,1723853818254,-5790.61662597,0.00013599,2]
[335114020,1723853818281,-2127.07450646,0.00013688,2]
[335114021,1723853818307,-154.60575532,0.00013697,2]
[335114022,1723853818334,-154.60575532,0.00013697,2]
[335114023,1723853818360,-493.03932546,0.00013697,2]
[335114024,1723853818385,-342.54706255,0.00013697,2]
[335114025,1723853818411,-154.80649189,0.00013697,2]
[335114026,1723853818438,-190.85060772,0.00013697,2]
[335114027,1723853818463,-154.80649189,0.00013697,2]
[335114028,1723853818490,-182.35195424,0.00013697,2]
[335114029,1723853818517,-728.56380751,0.00013697,2]
[335114030,1723853818547,-665.24157892,0.00013697,2]
[335114031,1723853818572,-300.0,0.00013697,2]
[335114032,1723853818596,-300.0,0.00013697,2]
[335114033,1723853818621,-15997.10900103,0.00013697,2]
[335114034,1723853818645,-158.01490399,0.00013698,2]
[335114035,1723853818673,-301.4340064,0.00013698,2]
[335114036,1723853818698,-294.39153461,0.00013698,2]
[335114037,1723853818723,-247.73286941,0.00013698,2]
[335114038,1723853818749,-413.37613053,0.00013698,2]
[335114039,1723853818773,-898.15627799,0.00013698,2]
[335114040,1723853818799,-235.84332208,0.00013699,2]
[335114041,1723853818822,-192.30172298,0.00013792,2]
[335114042,1723853818848,-688.33798731,0.00013792,2]
[335114043,1723853818873,-228.72951774,0.00013792,2]
[335114044,1723853818897,-3563.37738581,0.00013971,2]
[335114045,1723853818924,-218.62299037,0.00013971,2]
[335114046,1723853819004,154.89468095,0.00013697,2]
[335114047,1723853819146,183.20482975,0.00013697,2]
[335114048,1723853820819,309.61984,0.00013971,2]
[335114049,1723853820984,300.0,0.00013696,2]
[335114050,1723853822348,300.0,0.00013696,2]
[335114054,1723854337163,-154.60575532,0.00013597,2]
[335114055,1723854337185,-171.81918573,0.00013597,2]
[335114056,1723854428126,-342.54706255,0.00013497,2]
[335114057,1723854428154,-153.57610697,0.00013497,2]
[335114058,1723854442110,-56.67503525,0.00013497,2]
[335114059,1723854442133,-279.03006407,0.00013497,2]
[335114060,1723854446137,-22.28461957,0.00013497,2]
[335114061,1723854446158,-170.60372455,0.00013596,2]
[335114062,1723854446180,-250.0,0.00015903,2]
[335114063,1723854446203,-238.88562932,0.00015946,2]
[335114064,1723854447101,-664.98122348,0.00014245,2]
[335114065,1723854447128,-11.11437068,0.00015946,2]
[335114066,1723854447153,-250.0,0.0001599,2]
[335114067,1723854447185,-250.0,0.00016034,2]
[335114068,1723854447210,-250.0,0.00016077,2]
[335114069,1723854447236,-250.0,0.00016121,2]
[335114070,1723854447261,-250.0,0.00016164,2]
[335114071,1723854447283,-250.0,0.00016208,2]
[335114072,1723854447307,-250.0,0.00016252,2]
[335114073,1723854447335,-250.0,0.00016295,2]
[335114074,1723854447360,-250.0,0.00016339,2]
[335114075,1723854447385,-250.0,0.00016383,2]
[335114076,1723854447410,-250.0,0.00016426,2]
[335114077,1723854447438,-210.03158236,0.0001647,2]
[335114080,1723854546113,-170.52608191,0.00014519,2]
[335114081,1723854546134,-39.96841764,0.0001647,2]
[335114082,1723854546155,-250.0,0.00016513,2]
[335114083,1723854546178,-250.0,0.00016557,2]
[335114084,1723854546202,-25.97249629,0.00016601,2]
[335114085,1723854547135,-224.02750371,0.00016601,2]
[335114086,1723854547158,-250.0,0.00016644,2]
[335114087,1723854547180,-250.0,0.00016688,2]
[335114088,1723854547200,-250.0,0.00016731,2]
[335114089,1723854547220,-300.0,0.00019999,2]
[335114090,1723854547240,-300.0,0.00019999,2]
[335114091,1723854547263,-53150.52830834,0.0002,2]
[335114092,1723854547286,-420.0,0.00021999,2]
[335114093,1723854547308,-24900.0,0.00022438,2]
[335114094,1723854547331,-587.0,0.00024199,2]
[335114095,1723854547359,-1146.82620806,0.00024294,2]
[335114096,1723854547383,-300.4513546,0.00025205,2]
[335114097,1723854547407,-823.0,0.00026619,2]
[335114098,1723854547542,-465.90183422,0.00028063,2]
[335114099,1723854547564,-1152.0,0.00029281,2]
[335114100,1723854547584,-321.95173625,0.0002989,2]
[335114101,1723854547605,-151.0,0.0003,120]
[335114102,1723854547625,-1600.0,0.00032209,2]
[335114103,1723854547646,-998.50224663,0.00032299,2]
[335114104,1723854547670,-153.28,0.000323,31]
[335114105,1723854547694,-153.28,0.000323,31]
[335114106,1723854547719,-153.28,0.000323,31]
[335114107,1723854547745,-153.28,0.000323,31]
[335114108,1723854547769,-153.28,0.000323,31]
[335114109,1723854547794,-153.28,0.000323,31]
[335114110,1723854547818,-153.28,0.000323,31]
[335114111,1723854547844,-153.28,0.000323,31]
[335114112,1723854547867,-153.28,0.000323,31]
[335114113,1723854547893,-153.28,0.000323,31]
[335114114,1723854547918,-153.28,0.000323,31]
[335114115,1723854547942,-153.28,0.000323,31]
[335114116,1723854547964,-3366.76150197,0.00038,2]
[335114117,1723854547989,-407.93,0.0004198,30]
[335114118,1723854548012,-489.51,0.0004199,30]
[335114119,1723854548038,-20131.37970479,0.00042,30]
[335114120,1723854548059,-233.08543083,0.00042399,60]
[335114121,1723854548079,-500.0,0.00043399,60]
[335114122,1723854548100,-500.0,0.00044399,60]
[335114123,1723854548121,-500.0,0.00045399,60]
[335114124,1723854548142,-500.0,0.00046399,60]
[335114125,1723854548162,-704.9,0.00046891,30]
[335114126,1723854548187,-587.42,0.00046891,30]
[335114127,1723854548210,-1015.06,0.00046901,30]
[335114128,1723854548232,-845.88,0.00046901,30]
[335114129,1723854548256,-500.0,0.00047399,60]
[335114130,1723854548278,-1146.826208,0.00047952,28]
[335114131,1723854548301,-500.0,0.00048399,60]
[335114132,1723854548327,-500.0,0.00049304,120]
[335114133,1723854548354,-500.0,0.00049304,120]
[335114134,1723854548380,-500.0,0.00049304,120]
[335114135,1723854548405,-500.0,0.00049304,120]
[335114136,1723854548432,-617.79720583,0.00049304,120]
[335114137,1723854548458,-500.0,0.00049304,120]
[335114138,1723854548480,-500.0,0.00049304,120]